{"text_format":"3","workbook":"xlsx","n_sheets":1,"sheets":["דוח הוצאות"],"not_rendered":{"defined_names":4},"read":"whole","date_system":"1900"}

{"sheet":"דוח הוצאות","index":0,"n_rows":22,"n_cols":12,"rows_kept":22,"merged":[[1,2,1,3],[1,5,1,6],[3,2,3,3],[3,6,3,7],[3,10,3,11],[4,2,4,3],[4,6,4,7],[4,10,4,11],[20,2,20,4],[20,6,20,8],[21,2,21,4],[21,6,21,8]]}
[null,"דוח הוצאות",{"$nulls":8},"לשימוש משרדי בלבד"]
[null,"מטרה:",null,null,"מספר דוח:",null,null,"תקופת תשלום","מ:",{"$f":"IF(COUNTA(ExpenseData[תאריך])=0,\"\",MIN(ExpenseData[תאריך]))","v":""},"עד:",{"$f":"IF(COUNTA(ExpenseData[תאריך])=0,\"\",MAX(ExpenseData[תאריך]))","v":""}]
[null,"פרטי עובדים:"]
[null,"שם",{"$nulls":3},"תפקיד",{"$nulls":3},"מספר תעודת זהות"]
[null,"מחלקה",{"$nulls":3},"מנהל",{"$nulls":3},"מזהה עובד"]
[]
[null,"תאריך","חשבון","תיאור","מלון","תחבורה","דלק","ארוחות","טלפון","בידור","שונות","סה\"כ"]
[{"$nulls":11},{"$f":"SUM(ExpenseData[[#This Row],[מלון]:[שונות]])","v":0}]
[{"$nulls":11},{"$f":"SUM(ExpenseData[[#This Row],[מלון]:[שונות]])","v":0}]
[{"$nulls":11},{"$f":"SUM(ExpenseData[[#This Row],[מלון]:[שונות]])","v":0}]
[{"$nulls":11},{"$f":"SUM(ExpenseData[[#This Row],[מלון]:[שונות]])","v":0}]
[{"$nulls":11},{"$f":"SUM(ExpenseData[[#This Row],[מלון]:[שונות]])","v":0}]
[{"$nulls":11},{"$f":"SUM(ExpenseData[[#This Row],[מלון]:[שונות]])","v":0}]
[{"$nulls":11},{"$f":"SUM(ExpenseData[[#This Row],[מלון]:[שונות]])","v":0}]
[{"$nulls":11},{"$f":"SUM(ExpenseData[[#This Row],[מלון]:[שונות]])","v":0}]
[{"$nulls":11},{"$f":"SUM(ExpenseData[[#This Row],[מלון]:[שונות]])","v":0}]
[{"$nulls":11},{"$f":"SUM(ExpenseData[[#This Row],[מלון]:[שונות]])","v":0}]
[{"$nulls":11},{"$f":"SUM(ExpenseData[[#This Row],[מלון]:[שונות]])","v":0}]
[null,"סה\"כ",null,null,{"$f":"SUBTOTAL(109,ExpenseData[מלון])","v":0},{"$f":"SUBTOTAL(109,ExpenseData[תחבורה])","v":0},{"$f":"SUBTOTAL(109,ExpenseData[דלק])","v":0},{"$f":"SUBTOTAL(109,ExpenseData[ארוחות])","v":0},{"$f":"SUBTOTAL(109,ExpenseData[טלפון])","v":0},{"$f":"SUBTOTAL(109,ExpenseData[בידור])","v":0},{"$f":"SUBTOTAL(109,ExpenseData[שונות])","v":0},{"$f":"SUBTOTAL(109,ExpenseData[סה\"כ])","v":0}]
[{"$nulls":10},"סכום ביניים",{"$f":"ExpenseData[[#Totals],[סה\"כ]]","v":0}]
[null,"אושר:",{"$nulls":3},"הערות: ",{"$nulls":4},"מקדמות",0]
[{"$nulls":10},"סכום כולל",{"$f":"סכום_ביניים-מקדמות","v":0}]